fUSD/lending_fUSD_20240516
["ID","MTS","AMOUNT","RATE_DAILY","PERIOD"]
[327203570,1715897452056,-657.65,0.00011949,2]
[327203571,1715897452065,-657.65,0.00011949,2]
[327203572,1715897452076,-1310.45,0.00011949,2]
[327203573,1715897452087,-500.0,0.00011949,2]
[327203574,1715897452097,-430.48868077,0.00011949,2]
[327203575,1715897452106,-656.42,0.00011949,2]
[327203576,1715897452115,-1500.6,0.00011949,2]
[327203577,1715897452127,-1500.6,0.00011949,2]
[327203578,1715897452137,-1466.1,0.00011949,2]
[327203579,1715897452147,-1466.1,0.00011949,2]
[327203580,1715897452156,-1482.86,0.00011949,2]
[327203581,1715897452167,-2004.79,0.00011949,2]
[327203582,1715897452176,-2004.79,0.00011949,2]
[327203583,1715897452186,-269.46632254,0.00011949,2]
[327203584,1715897452196,-2206.03,0.00011949,2]
[327203585,1715897452206,-2206.03,0.00011949,2]
[327203586,1715897452216,-500.0,0.00011949,2]
[327203587,1715897452226,-726.65,0.00011949,2]
[327203588,1715897452237,-1749.5,0.00011949,2]
[327203589,1715897452247,-1749.5,0.00011949,2]
[327203590,1715897452257,-500.0,0.00011949,2]
[327203591,1715897452267,-500.0,0.00011949,2]
[327203592,1715897452276,-500.0,0.00011949,2]
[327203593,1715897452286,-2319.43,0.00011949,2]
[327203594,1715897452296,-2319.43,0.00011949,2]
[327203595,1715897452305,-1513.2,0.00011949,2]
[327203596,1715897452316,-1513.2,0.00011949,2]
[327203597,1715897452327,-626.0414281,0.00011949,2]
[327203598,1715897452336,-2529.61,0.00011949,2]
[327203599,1715897452346,-2529.61,0.00011949,2]
[327203600,1715897452355,-500.0,0.00011949,2]
[327203601,1715897452366,-903.58,0.00011949,2]
[327203602,1715897452375,-513.96,0.00011949,2]
[327203603,1715897452384,-903.58,0.00011949,2]
[327203604,1715897452394,-714.43,0.00011949,2]
[327203605,1715897452404,-714.43,0.00011949,2]
[327203606,1715897452414,-500.0,0.00011949,2]
[327203607,1715897452423,-478.61801605,0.00011949,2]
[327203608,1715897452432,-1039.5,0.00011949,2]
[327203609,1715897452442,-1039.5,0.00011949,2]
[327203610,1715897452451,-541.67,0.00011949,2]
[327203611,1715897452461,-541.67,0.00011949,2]
[327203612,1715897452474,-1830.49,0.00011949,2]
[327203613,1715897452485,-1830.49,0.00011949,2]
[327203614,1715897452496,-2070.64,0.00011949,2]
[327203615,1715897452506,-2070.64,0.00011949,2]
[327203616,1715897452518,-500.0,0.00011949,2]
[327203617,1715897452530,-500.0,0.00011949,2]
[327203618,1715897452540,-1576.75,0.00011949,2]
[327203619,1715897452550,-1576.75,0.00011949,2]
[327203620,1715897452559,-500.0,0.00011949,2]
[327203621,1715897452569,-500.0,0.00011949,2]
[327203622,1715897452578,-500.0,0.00011949,2]
[327203623,1715897452587,-1761.01,0.00011949,2]
[327203624,1715897452597,-1761.01,0.00011949,2]
[327203625,1715897452606,-587.17,0.00011949,2]
[327203626,1715897452615,-587.17,0.00011949,2]
[327203627,1715897452624,-2061.49,0.00011949,2]
[327203628,1715897452633,-2061.49,0.00011949,2]
[327203629,1715897452642,-500.0,0.00011949,2]
[327203630,1715897452651,-500.0,0.00011949,2]
[327203631,1715897452661,-1299.75,0.00011949,2]
[327203632,1715897452670,-1299.75,0.00011949,2]
[327203633,1715897452679,-500.0,0.00011949,2]
[327203634,1715897452689,-500.0,0.00011949,2]
[327203635,1715897452698,-500.0,0.00011949,2]
[327203636,1715897452707,-376.12097227,0.00011949,2]
[327203637,1715897452716,-500.0,0.00011949,2]
[327203638,1715897452725,-500.0,0.00011949,2]
[327203639,1715897452735,-1922.35,0.00011949,2]
[327203640,1715897452744,-1922.35,0.00011949,2]
[327203641,1715897452753,-500.0,0.00011949,2]
[327203642,1715897452763,-967.95,0.00011949,2]
[327203643,1715897452772,-778.34,0.00011949,2]
[327203644,1715897452781,-778.34,0.00011949,2]
[327203645,1715897452790,-1051.41,0.00011949,2]
[327203646,1715897452800,-500.0,0.00011949,2]
[327203647,1715897452810,-500.0,0.00011949,2]
[327203648,1715897452819,-1219.53,0.00011949,2]
[327203649,1715897452828,-795.53,0.00011949,2]
[327203650,1715897452838,-795.53,0.00011949,2]
[327203651,1715897452847,-1064.7,0.00011949,2]
[327203652,1715897452856,-1093.5,0.00011949,2]
[327203653,1715897452866,-1188.16,0.00011949,2]
[327203654,1715897452875,-1188.16,0.00011949,2]
[327203655,1715897452884,-1285.75,0.00011949,2]
[327203656,1715897452894,-1285.75,0.00011949,2]
[327203657,1715897452903,-500.0,0.00011949,2]
[327203658,1715897452912,-500.0,0.00011949,2]
[327203659,1715897452922,-500.0,0.00011949,2]
[327203660,1715897452931,-525.79174631,0.00011949,2]
[327203661,1715897452940,-1290.36,0.00011949,2]
[327203662,1715897452950,-500.0,0.00011949,2]
[327203663,1715897452959,-1104.58,0.00011949,2]
[327203664,1715897452968,-1104.58,0.00011949,2]
[327203665,1715897452978,-500.0,0.00011949,2]
[327203666,1715897452987,-500.0,0.00011949,2]
[327203667,1715897452996,-796.39,0.00011949,2]
[327203668,1715897453006,-671.49,0.00011949,2]
[327203669,1715897453015,-671.49,0.00011949,2]
[327203670,1715897453024,-151.0,0.00011949,2]
[327203671,1715897453035,-151.0,0.00011949,2]
[327203672,1715897453048,-151.0,0.00011949,2]
[327203673,1715897453057,-1757.37,0.00011949,2]
[327203674,1715897453067,-151.0,0.00011949,2]
[327203675,1715897453077,-501.71,0.00011949,2]
[327203676,1715897453087,-1916.32,0.00011949,2]
[327203677,1715897453097,-151.0,0.00011949,2]
[327203678,1715897453106,-500.0,0.00011949,2]
[327203679,1715897453115,-500.0,0.00011949,2]
[327203680,1715897453125,-500.0,0.00011949,2]
[327203681,1715897453135,-151.0,0.00011949,2]
[327203682,1715897453145,-816.353335,0.00011949,2]
[327203683,1715897453155,-3257.59,0.00011949,2]
[327203684,1715897453165,-905.49,0.00011949,2]
[327203685,1715897453174,-816.353335,0.00011949,2]
[327203686,1715897453184,-151.0,0.00011949,2]
[327203687,1715897453193,-1844.6,0.00011949,2]
[327203688,1715897453204,-500.0,0.00011949,2]
[327203689,1715897453213,-500.0,0.00011949,2]
[327203690,1715897453223,-500.0,0.00011949,2]
[327203691,1715897453233,-843.34,0.00011949,2]
[327203692,1715897453243,-843.34,0.00011949,2]
[327203693,1715897453253,-1739.1,0.00011949,2]
[327203694,1715897453262,-1739.1,0.00011949,2]
[327203695,1715897453272,-150.0,0.00011949,2]
[327203696,1715897453282,-298662.8786512,0.0001195,2]
[327203697,1715897453291,-236.884873,0.0001195,2]
[327203698,1715897453300,-151.0,0.0001195,2]
[327203699,1715897453315,-151.81978,0.0001195,2]
[327203700,1715897453330,-151.0,0.0001195,2]
[327203701,1715897453340,-151.0,0.0001195,2]
[327203702,1715897453349,-151.0,0.0001195,2]
[327203703,1715897453359,-151.0,0.0001195,2]
[327203704,1715897453368,-151.0,0.0001195,2]
[327203705,1715897453377,-151.0,0.0001195,2]
[327203706,1715897453387,-218.496344,0.0001195,2]
[327203707,1715897453397,-218.496344,0.0001195,2]
[327203708,1715897453407,-218.496344,0.0001195,2]
[327203709,1715897453416,-218.496344,0.0001195,2]
[327203710,1715897453425,-151.0,0.0001195,2]
[327203711,1715897453435,-151.0,0.0001195,2]
[327203712,1715897453444,-151.0,0.0001195,2]
[327203713,1715897453454,-151.0,0.0001195,2]
[327203714,1715897453463,-151.0,0.0001195,2]
[327203715,1715897453472,-151.0,0.0001195,2]
[327203716,1715897453482,-151.0,0.0001195,2]
[327203717,1715897453492,-151.0,0.0001195,2]
[327203718,1715897453502,-188.967024,0.0001195,2]
[327203719,1715897453511,-226.647807,0.0001195,2]
[327203720,1715897453520,-226.647807,0.0001195,2]
[327203721,1715897453530,-151.0,0.0001195,2]
[327203722,1715897453539,-151.0,0.0001195,2]
[327203723,1715897453549,-151.0,0.0001195,2]
[327203724,1715897453558,-151.0,0.0001195,2]
[327203725,1715897453568,-151.0,0.0001195,2]
[327203726,1715897453578,-151.0,0.0001195,2]
[327203727,1715897453588,-816.353335,0.0001195,2]
[327203728,1715897453597,-816.353335,0.0001195,2]
[327203729,1715897453607,-268.967185,0.0001195,2]
[327203730,1715897453617,-151.0,0.0001195,2]
[327203731,1715897453626,-500.0,0.00011951,2]
[327203732,1715897453636,-500.0,0.00011953,2]
[327203733,1715897453645,-500.0,0.00011954,2]
[327203734,1715897453654,-2065.80097701,0.00011954,2]
[327203735,1715897453663,-500.0,0.00011955,2]
[327203736,1715897453673,-388.23565586,0.00011957,2]
[327203737,1715897453682,-7033.30925373,0.00011959,2]
[327203738,1715897453691,-500.0,0.0001196,2]
[327203739,1715897453701,-256.89,0.00011964,2]
[327203740,1715897453710,-3313.63418438,0.00011992,2]
[327203741,1715897453719,-20901.97578743,0.00011992,2]
[327203742,1715897453728,-790.0,0.00011998,2]
[327203743,1715897453737,-535.62,0.00011998,2]
[327203744,1715897453749,-566.68171677,0.00011998,2]
[327203745,1715897453759,-658.52,0.00011998,2]
[327203746,1715897453769,-500.0,0.00011998,2]
[327203747,1715897453778,-1052.53,0.00011998,2]
[327203748,1715897453789,-631.75,0.00011998,2]
[327203749,1715897453798,-500.0,0.00011998,2]
[327203750,1715897453807,-660.81,0.00011998,2]
[327203751,1715897453817,-500.0,0.00011998,2]
[327203752,1715897453827,-726.65,0.00011998,2]
[327203753,1715897453836,-157.051707,0.00011998,2]
[327203754,1715897453845,-652.01,0.00011999,2]
[327203755,1715897453854,-967.77,0.00011999,2]
[327203756,1715897454051,-1310.45,0.00011999,2]
[327203757,1715897454062,-656.42,0.00011999,2]
[327203758,1715897454072,-1482.86,0.00011999,2]
[327203759,1715897454082,-500.0,0.00011999,2]
[327203760,1715897454092,-500.0,0.00011999,2]
[327203761,1715897454101,-513.96,0.00011999,2]
[327203762,1715897454110,-500.0,0.00011999,2]
[327203763,1715897454120,-296.52820753,0.00011999,2]
[327203764,1715897454130,-967.95,0.00011999,2]
[327203765,1715897454139,-1051.41,0.00011999,2]
[327203766,1715897454148,-1219.53,0.00011999,2]
[327203767,1715897454157,-1064.7,0.00011999,2]
[327203768,1715897454166,-1093.5,0.00011999,2]
[327203769,1715897454175,-1290.36,0.00011999,2]
[327203770,1715897454184,-796.39,0.00011999,2]
[327203771,1715897454194,-1757.37,0.00011999,2]
[327203772,1715897454203,-501.71,0.00011999,2]
[327203773,1715897454212,-1916.32,0.00011999,2]
[327203774,1715897454221,-905.49,0.00011999,2]
[327203775,1715897454230,-1844.6,0.00011999,2]
[327203776,1715897454239,-155.0,0.00012,2]
[327203777,1715897454249,-5000.0,0.00012,2]
[327203778,1715897454259,-530.7040656,0.00012,2]
[327203779,1715897454268,-292.59685848,0.00012,2]
[327203780,1715897454277,-409.94933149,0.00012,2]
[327203781,1715897454287,-744.56124773,0.00012,2]
[327203782,1715897454297,-1000.0,0.00012,2]
[327203783,1715897454307,-7943.24883776,0.00012,2]
[327203784,1715897454316,-512.90393736,0.00012,4]
[327203785,1715897454327,-338.40498276,0.00012,5]
[327203786,1715897454337,-6000.0,0.00012,2]
[327203787,1715897454346,-300.0,0.00012,2]
[327203788,1715897454356,-1151.96077803,0.00012032,3]
[327203789,1715897454365,-173.59,0.00012033,2]
[327203790,1715897454374,-600.0,0.00012047,2]
[327203791,1715897454384,-7033.30925373,0.00012064,2]
[327203792,1715897454393,-762.0905427,0.00012082,2]
[327203793,1715897454403,-3257.59,0.0001209,2]
[327203794,1715897454412,-157.051707,0.00012098,2]
[327203795,1715897454421,-1000.0,0.00012124,5]
[327203796,1715897454430,-652.01,0.00012167,2]
[327203797,1715897454440,-967.77,0.00012167,2]
[327203798,1715897454449,-1310.45,0.00012167,2]
[327203799,1715897454460,-656.42,0.00012167,2]
[327203800,1715897454469,-1482.86,0.00012167,2]
[327203801,1715897454478,-500.0,0.00012167,2]
[327203802,1715897454487,-500.0,0.00012167,2]
[327203803,1715897454497,-513.96,0.00012167,2]
[327203804,1715897454506,-500.0,0.00012167,2]
[327203805,1715897454515,-967.95,0.00012167,2]
[327203806,1715897454524,-1051.41,0.00012167,2]
[327203807,1715897454534,-1219.53,0.00012167,2]
[327203808,1715897454544,-1064.7,0.00012167,2]
[327203809,1715897454553,-1093.5,0.00012167,2]
[327203810,1715897454563,-1290.36,0.00012167,2]
[327203811,1715897454572,-796.39,0.00012167,2]
[327203812,1715897454583,-1757.37,0.00012167,2]
[327203813,1715897454592,-501.71,0.00012167,2]
[327203814,1715897454602,-1916.32,0.00012167,2]
[327203815,1715897454611,-500.0,0.00012167,2]
[327203816,1715897454620,-905.49,0.00012167,2]
[327203817,1715897454629,-1844.6,0.00012167,2]
[327203818,1715897454638,-500.0,0.00012167,2]
[327203819,1715897454647,-151.0,0.00012168,2]
[327203820,1715897454656,-198.175589,0.00012168,2]
[327203821,1715897454666,-151.0,0.00012168,2]
[327203822,1715897454675,-151.0,0.00012168,2]
[327203823,1715897454684,-7033.30925373,0.00012168,2]
[327203824,1715897454694,-180.0,0.00012175,2]
[327203825,1715897454703,-157.051707,0.00012198,2]
[327203826,1715897454712,-2000.0,0.000122,2]
[327203827,1715897454722,-170.0,0.0001221,2]
[327203828,1715897454730,-3313.63418438,0.00012219,2]
[327203829,1715897454739,-20901.97578743,0.00012219,2]
[327203830,1715897454749,-7033.30925373,0.00012273,2]
[327203831,1715897454758,-1185.12132379,0.00012276,3]
[327203832,1715897454767,-157.051707,0.00012298,2]
[327203833,1715897454776,-2587.21977295,0.00012325,2]
[327203834,1715897454785,-7033.30925373,0.00012377,2]
[327203835,1715897454794,-157.051707,0.00012398,2]
[327203836,1715897454804,-1668.94826211,0.000124,2]
[327203837,1715897454814,-500.0,0.000124,4]
[327203838,1715897454824,-1000.0,0.00012424,6]
[327203839,1715897454834,-3313.63418438,0.00012446,2]
[327203840,1715897454844,-20901.97578743,0.00012446,2]
[327203841,1715897454853,-10000.0,0.00012463,7]
[327203842,1715897454862,-7033.30925373,0.00012482,2]
[327203843,1715897454871,-6334.36194934,0.00012489,2]
[327203844,1715897454881,-157.051707,0.00012498,2]
[327203845,1715897454891,-652.01,0.00012499,2]
[327203846,1715897454900,-967.77,0.00012499,2]
[327203847,1715897454909,-1310.45,0.00012499,2]
[327203848,1715897454919,-656.42,0.00012499,2]
[327203849,1715897454928,-1482.86,0.00012499,2]
[327203850,1715897454937,-500.0,0.00012499,2]
[327203851,1715897454946,-500.0,0.00012499,2]
[327203852,1715897454955,-513.96,0.00012499,2]
[327203853,1715897454965,-500.0,0.00012499,2]
[327203854,1715897454973,-967.95,0.00012499,2]
[327203855,1715897454983,-1051.41,0.00012499,2]
[327203856,1715897454992,-1219.53,0.00012499,2]
[327203857,1715897455001,-1064.7,0.00012499,2]
[327203858,1715897455011,-1093.5,0.00012499,2]
[327203859,1715897455020,-1290.36,0.00012499,2]
[327203860,1715897455030,-796.39,0.00012499,2]
[327203861,1715897455039,-1757.37,0.00012499,2]
[327203862,1715897455053,-501.71,0.00012499,2]
[327203863,1715897455062,-1916.32,0.00012499,2]
[327203864,1715897455071,-905.49,0.00012499,2]
[327203865,1715897455080,-1844.6,0.00012499,2]
[327203866,1715897455091,-155.0,0.000125,2]
[327203867,1715897455100,-287.57906919,0.000125,2]
[327203868,1715897455110,-252.19620887,0.000125,2]
[327203869,1715897455120,-1000.0,0.000125,2]
[327203870,1715897455131,-500.0,0.000125,4]
[327203871,1715897455141,-500.0,0.00012515,2]
[327203872,1715897455151,-500.0,0.00012515,2]
[327203873,1715897455160,-570.6,0.00012515,2]
[327203874,1715897455169,-570.6,0.00012515,2]
[327203875,1715897455179,-657.65,0.00012515,2]
[327203876,1715897455188,-657.65,0.00012515,2]
[327203877,1715897455198,-1500.6,0.00012515,2]
[327203878,1715897455207,-1500.6,0.00012515,2]
[327203879,1715897455218,-2206.03,0.00012515,2]
[327203880,1715897455228,-2206.03,0.00012515,2]
[327203881,1715897455238,-500.0,0.00012515,2]
[327203882,1715897455248,-500.0,0.00012515,2]
[327203883,1715897455257,-1513.2,0.00012515,2]
[327203884,1715897455266,-1513.2,0.00012515,2]
[327203885,1715897455276,-903.58,0.00012515,2]
[327203886,1715897455286,-903.58,0.00012515,2]
[327203887,1715897455295,-1039.5,0.00012515,2]
[327203888,1715897455305,-1039.5,0.00012515,2]
[327203889,1715897455314,-541.67,0.00012515,2]
[327203890,1715897455325,-541.67,0.00012515,2]
[327203891,1715897455334,-500.0,0.00012515,2]
[327203892,1715897455343,-500.0,0.00012515,2]
[327203893,1715897455352,-563.94174839,0.00012515,2]
[327203894,1715897455362,-587.17,0.00012515,2]
[327203895,1715897455371,-587.17,0.00012515,2]
[327203896,1715897455380,-500.0,0.00012515,2]
[327203897,1715897455390,-500.0,0.00012515,2]
[327203898,1715897455399,-1299.75,0.00012515,2]
[327203899,1715897455408,-1299.75,0.00012515,2]
[327203900,1715897455417,-500.0,0.00012515,2]
[327203901,1715897455427,-500.0,0.00012515,2]
[327203902,1715897455436,-1922.35,0.00012515,2]
[327203903,1715897455446,-1922.35,0.00012515,2]
[327203904,1715897455455,-778.34,0.00012515,2]
[327203905,1715897455464,-778.34,0.00012515,2]
[327203906,1715897455473,-500.0,0.00012515,2]
[327203907,1715897455483,-500.0,0.00012515,2]
[327203908,1715897455492,-795.53,0.00012515,2]
[327203909,1715897455501,-795.53,0.00012515,2]
[327203910,1715897455510,-1188.16,0.00012515,2]
[327203911,1715897455520,-1188.16,0.00012515,2]
[327203912,1715897455529,-1285.75,0.00012515,2]
[327203913,1715897455539,-1285.75,0.00012515,2]
[327203914,1715897455548,-500.0,0.00012515,2]
[327203915,1715897455557,-500.0,0.00012515,2]
[327203916,1715897455567,-226.647807,0.00012515,2]
[327203917,1715897455577,-226.647807,0.00012515,2]
[327203918,1715897455586,-1104.58,0.00012515,2]
[327203919,1715897455595,-1104.58,0.00012515,2]
[327203920,1715897455604,-522.90923,0.00012515,2]
[327203921,1715897455614,-671.49,0.00012515,2]
[327203922,1715897455623,-671.49,0.00012515,2]
[327203923,1715897455632,-843.34,0.00012515,2]
[327203924,1715897455641,-843.34,0.00012515,2]
[327203925,1715897455650,-1739.1,0.00012515,2]
[327203926,1715897455660,-1739.1,0.00012515,2]
[327203927,1715897455670,-151.0,0.00012516,2]
[327203928,1715897455679,-151.0,0.00012516,2]
[327203929,1715897455689,-151.0,0.00012516,2]
[327203930,1715897455699,-151.0,0.00012516,2]
[327203931,1715897455708,-151.620958,0.00012516,2]
[327203932,1715897455718,-151.810913,0.00012516,2]
[327203933,1715897455727,-881.51647475,0.0001258,2]
[327203934,1715897455736,-151.0,0.00012586,2]
[327203935,1715897455745,-7033.30925373,0.00012586,2]
[327203936,1715897455755,-157.051707,0.00012598,2]
[327203937,1715897455764,-500.0,0.000126,4]
[327203938,1715897455774,-3000.0,0.0001265,2]
[327203939,1715897455783,-173.59,0.00012671,2]
[327203940,1715897455792,-3313.63418438,0.00012673,2]
[327203941,1715897455801,-20901.97578743,0.00012673,2]
[327203942,1715897455811,-7033.30925373,0.00012691,2]
[327203943,1715897455820,-151.0,0.00012691,2]
[327203944,1715897455830,-151.0,0.00012691,2]
[327203945,1715897455839,-3257.59,0.00012697,2]
[327203946,1715897455849,-3257.59,0.00012697,2]
[327203947,1715897455858,-3257.59,0.00012697,2]
[327203948,1715897455869,-3257.59,0.00012697,2]
[327203949,1715897455879,-3257.75389395,0.00012697,2]
[327203950,1715897455889,-157.051705,0.00012698,2]
[327203951,1715897455899,-157.051705,0.00012698,2]
[327203952,1715897455909,-157.051705,0.00012698,2]
[327203953,1715897455919,-157.051705,0.00012698,2]
[327203954,1715897455928,-500.0,0.000127,4]
[327203955,1715897455938,-855.0,0.000127,2]
[327203956,1715897455952,-2744.39071114,0.00012737,2]
[327203957,1715897455963,-151.0,0.00012737,2]
[327203958,1715897455972,-230.957618,0.00012737,2]
[327203959,1715897455983,-151.0,0.00012737,2]
[327203960,1715897455993,-967.993539,0.0001275,2]
[327203961,1715897456003,-170.0,0.0001275,2]
[327203962,1715897456012,-3000.0,0.0001276,4]
[327203963,1715897456022,-152.229865,0.0001276,2]
[327203964,1715897456031,-3000.0,0.0001277,2]
[327203965,1715897456042,-858.2,0.0001278,3]
[327203966,1715897456054,-5008.46719287,0.0001279,2]
[327203967,1715897456063,-727.47,0.0001279,5]
[327203968,1715897456073,-151.0,0.0001279,2]
[327203969,1715897456083,-7033.30925373,0.00012795,2]
[327203970,1715897456093,-157.051705,0.00012798,2]
[327203971,1715897456105,-157.051705,0.00012798,2]
[327203972,1715897456115,-157.051705,0.00012798,2]
[327203973,1715897456129,-157.051705,0.00012798,2]
[327203974,1715897456139,-157.051705,0.00012798,2]
[327203975,1715897456148,-157.051705,0.00012798,2]
[327203976,1715897456157,-1162.02,0.000128,3]
[327203977,1715897456167,-2000.0,0.000128,2]
[327203978,1715897456178,-2000.0,0.000128,2]
[327203979,1715897456188,-972.0,0.000128,4]
[327203980,1715897456198,-200.3034419,0.0001286,2]
[327203981,1715897456209,-762.0905427,0.00012867,2]
[327203982,1715897456219,-11611.8052751,0.0001287,2]
[327203983,1715897456228,-500.0,0.00012875,2]
[327203984,1715897456237,-500.0,0.00012875,2]
[327203985,1715897456248,-479.10940715,0.00012876,2]
[327203986,1715897456257,-500.0,0.00012876,2]
[327203987,1715897456267,-500.0,0.00012876,2]
[327203988,1715897456277,-501.96171097,0.00012876,2]
[327203989,1715897456288,-500.0,0.00012876,2]
[327203990,1715897456299,-505.36336741,0.00012876,2]
[327203991,1715897456309,-1466.1,0.00012876,2]
[327203992,1715897456322,-1466.1,0.00012876,2]
[327203993,1715897456332,-1466.1,0.00012876,2]
[327203994,1715897456342,-1466.1,0.00012876,2]
[327203995,1715897456352,-1466.21566738,0.00012876,2]
[327203996,1715897456363,-2004.79,0.00012876,2]
[327203997,1715897456374,-2004.79,0.00012876,2]
[327203998,1715897456385,-2004.79,0.00012876,2]
[327203999,1715897456396,-2004.79,0.00012876,2]
[327204000,1715897456406,-2004.81315836,0.00012876,2]
[327204001,1715897456417,-1749.5,0.00012876,2]
[327204002,1715897456426,-1749.5,0.00012876,2]
[327204003,1715897456437,-1749.5,0.00012876,2]
[327204004,1715897456446,-218.496344,0.00012876,2]
[327204005,1715897456456,-1749.5,0.00012876,2]
[327204006,1715897456466,-1749.60907084,0.00012876,2]
[327204007,1715897456477,-218.496344,0.00012876,2]
[327204008,1715897456488,-2319.43,0.00012876,2]
[327204009,1715897456497,-2319.43,0.00012876,2]
[327204010,1715897456506,-2319.43,0.00012876,2]
[327204011,1715897456517,-2319.43,0.00012876,2]
[327204012,1715897456528,-2319.55,0.00012876,2]
[327204013,1715897456538,-2529.61,0.00012876,2]
[327204014,1715897456550,-2529.61,0.00012876,2]
[327204015,1715897456560,-2529.61,0.00012876,2]
[327204016,1715897456571,-2529.61,0.00012876,2]
[327204017,1715897456581,-2529.84070996,0.00012876,2]
[327204018,1715897456590,-714.43,0.00012876,2]
[327204019,1715897456600,-714.43,0.00012876,2]
[327204020,1715897456610,-714.43,0.00012876,2]
[327204021,1715897456621,-714.43,0.00012876,2]
[327204022,1715897456630,-714.61454501,0.00012876,2]
[327204023,1715897456639,-1830.49,0.00012876,2]
[327204024,1715897456648,-1830.49,0.00012876,2]
[327204025,1715897456658,-1830.49,0.00012876,2]
[327204026,1715897456667,-1830.49,0.00012876,2]
[327204027,1715897456676,-1830.68138593,0.00012876,2]
[327204028,1715897456685,-2070.64,0.00012876,2]
[327204029,1715897456696,-2070.64,0.00012876,2]
[327204030,1715897456705,-2070.64,0.00012876,2]
[327204031,1715897456715,-2070.64,0.00012876,2]
[327204032,1715897456726,-2070.80018057,0.00012876,2]
[327204033,1715897456737,-1576.75,0.00012876,2]
[327204034,1715897456747,-1576.75,0.00012876,2]
[327204035,1715897456757,-1576.75,0.00012876,2]
[327204036,1715897456768,-1576.75,0.00012876,2]
[327204037,1715897456778,-1576.93764461,0.00012876,2]
[327204038,1715897456942,-1761.01,0.00012876,2]
[327204039,1715897456953,-1761.01,0.00012876,2]
[327204040,1715897456963,-1761.01,0.00012876,2]
[327204041,1715897456972,-1761.01,0.00012876,2]
[327204042,1715897456982,-1761.21951569,0.00012876,2]
[327204043,1715897456993,-2061.49,0.00012876,2]
[327204044,1715897457002,-2061.49,0.00012876,2]
[327204045,1715897457011,-2061.49,0.00012876,2]
[327204046,1715897457020,-2061.49,0.00012876,2]
[327204047,1715897457030,-2061.58512544,0.00012876,2]
[327204048,1715897457043,-500.0,0.00012876,2]
[327204049,1715897457055,-500.0,0.00012876,2]
[327204050,1715897457065,-500.0,0.00012876,2]
[327204051,1715897457077,-500.0,0.00012876,2]
[327204052,1715897457087,-234.66,0.00012876,2]
[327204053,1715897457096,-151.0,0.00012876,2]
[327204054,1715897457106,-152.917243,0.00012876,2]
[327204055,1715897457117,-182.64558,0.00012876,2]
[327204056,1715897457131,-151.0,0.00012876,2]
[327204057,1715897457143,-816.353335,0.00012876,2]
[327204058,1715897457154,-816.353335,0.00012876,2]
[327204059,1715897457163,-151.0,0.00012877,2]
[327204060,1715897457174,-151.0,0.00012877,2]
[327204061,1715897457186,-151.0,0.00012877,2]
[327204062,1715897457197,-151.0,0.00012877,2]
[327204063,1715897457207,-151.0,0.00012877,2]
[327204064,1715897457217,-151.0,0.00012877,2]
[327204065,1715897457226,-151.0,0.00012877,2]
[327204066,1715897457235,-231.908105,0.00012877,2]
[327204067,1715897457244,-1000.0,0.00012877,2]
[327204068,1715897457255,-1000.0,0.00012877,2]
[327204069,1715897457264,-1000.0,0.00012877,2]